bitfinex/quotes_BTCUSD_20220212
["timestamp","ask_amount","ask_price","bid_price","bid_amount"]
[1644636794886,0.3,42266.0,42261.0,0.07647143]
[1644636795286,0.3,42266.0,42259.0,0.06243603]
[1644636795482,0.45,42265.0,42259.0,0.06243603]
[1644636795683,0.3,42266.0,42259.0,0.06243603]
[1644636796285,0.0001,42265.0,42259.0,0.06243603]
[1644636796487,0.32951,42264.0,42259.0,0.06243603]
[1644636797488,0.32951,42264.0,42260.0,0.08225053]
[1644636798250,0.0001,42265.0,42260.0,0.08225053]
[1644636798446,0.32951,42264.0,42260.0,0.08225053]
[1644636798649,0.32951,42263.0,42260.0,0.08225053]
[1644636798847,0.32951,42262.0,42260.0,0.08225053]
[1644636799046,0.32951,42261.0,42260.0,0.08225053]
[1644636799247,0.32951,42261.0,42260.0,0.42734652]
[1644636799446,0.00108698,42263.0,42260.0,0.42734652]
[1644636799646,0.32951,42262.0,42260.0,0.20057753]
[1644636799848,0.00108698,42263.0,42260.0,0.20057753]
[1644636800048,0.32951,42262.0,42260.0,0.44057753]
[1644636800251,0.00108698,42263.0,42260.0,0.44057753]
[1644636800449,0.32951,42262.0,42260.0,0.44057753]
[1644636802082,0.00108698,42263.0,42260.0,0.44057753]
[1644636802580,0.32951,42262.0,42260.0,0.44057753]
[1644636802782,0.32951,42261.0,42260.0,0.44057753]
[1644636802987,0.32951,42261.0,42260.0,0.24]
[1644636803182,0.42951,42261.0,42260.0,0.24]
[1644636803381,0.32951,42261.0,42260.0,0.24]
[1644636803583,0.00108698,42263.0,42260.0,0.24]
[1644636804582,0.00098261,42261.0,42260.0,0.31922457]
[1644636804783,0.33049261,42261.0,42260.0,0.31922457]
[1644636805184,0.33049261,42261.0,42260.0,0.37839457]
[1644636806335,0.00098261,42261.0,42260.0,0.37839457]
[1644636806535,0.33049261,42261.0,42260.0,0.37839457]
[1644636806735,0.00098261,42261.0,42260.0,0.37839457]
[1644636806935,0.33049261,42261.0,42260.0,0.37839457]
[1644636807138,0.00098261,42261.0,42260.0,0.42569457]
[1644636807337,0.00108698,42263.0,42261.0,0.10248621]
[1644636807535,0.00108698,42263.0,42261.0,0.14978621]
[1644636807737,0.00108698,42263.0,42261.0,0.10248621]
[1644636807738,0.32951,42262.0,42261.0,0.10248621]
[1644636808835,0.32951,42262.0,42261.0,0.18197209]
[1644636809235,0.32451,42262.0,42261.0,0.18197209]
[1644636809891,0.32951,42262.0,42261.0,0.18197209]
[1644636810095,0.329508,42262.0,42261.0,0.18197209]
[1644636812596,0.33001743,42266.0,42261.0,0.18197209]
[1644636812794,0.43011743,42266.0,42261.0,0.18197209]
[1644636812997,0.26613217,42265.0,42261.0,0.09748621]
[1644636813236,0.329508,42264.0,42261.0,0.09748621]
[1644636813733,0.429508,42264.0,42261.0,0.09748621]
[1644636814131,0.429508,42264.0,42261.0,0.1674749]
[1644636814936,0.429508,42264.0,42261.0,0.16898089]
[1644636815343,0.479508,42264.0,42261.0,0.0989922]
[1644636815537,0.329508,42263.0,42261.0,0.0989922]
[1644636815740,0.329508,42263.0,42261.0,0.1581612]
[1644636815940,0.429508,42263.0,42261.0,0.1581612]
[1644636816138,0.2636968,42262.0,42261.0,0.0989922]
[1644636816341,0.34897449,42262.0,42261.0,0.0989922]
[1644636816738,0.44897449,42262.0,42261.0,0.0989922]
[1644636816986,0.77848249,42262.0,42261.0,0.0989922]
[1644636817187,0.44897449,42262.0,42261.0,0.0989922]
[1644636817486,0.3636968,42262.0,42261.0,0.0989922]
[1644636818685,0.1,42262.0,42261.0,0.0989922]
[1644636818886,0.00050886,42266.0,42261.0,0.0989922]
[1644636819090,0.0001,42268.0,42261.0,0.0989922]
[1644636819385,0.00050886,42266.0,42261.0,0.0989922]
[1644636819585,0.00050886,42266.0,42261.0,0.09748621]
[1644636819785,0.00050886,42266.0,42265.0,0.08772804]
[1644636820187,0.33001686,42266.0,42265.0,0.08772804]
[1644636820485,0.1,42266.0,42265.0,0.08772804]
[1644636820738,0.429508,42266.0,42265.0,0.08772804]
[1644636821041,0.429508,42266.0,42261.0,0.09748621]
[1644636821042,0.329508,42265.0,42261.0,0.09748621]
[1644636821238,0.1,42266.0,42262.0,0.059161]
[1644636821435,0.0001,42267.0,42262.0,0.059161]
[1644636821638,0.0001,42270.0,42262.0,0.059161]
[1644636821936,0.00050888,42266.0,42265.0,0.23101142]
[1644636822735,0.0001,42271.0,42265.0,0.3189791]
[1644636822938,0.00050888,42268.0,42266.0,0.059161]
[1644636823136,0.329508,42267.0,42266.0,0.059161]
[1644636823335,0.0001,42267.0,42266.0,0.059161]
[1644636823540,0.00050888,42268.0,42266.0,0.059161]
[1644636823938,0.0001,42270.0,42266.0,0.059161]
[1644636824137,0.00050887,42269.0,42266.0,0.059161]
[1644636825190,0.329508,42272.0,42266.0,0.059161]
[1644636825394,0.2,42269.0,42265.0,0.16307724]
[1644636825591,0.0001,42268.0,42265.0,0.16307724]
[1644636826393,0.329508,42267.0,42265.0,0.16307724]
[1644636826593,0.00050887,42269.0,42265.0,0.16307724]
[1644636826796,0.00060887,42269.0,42265.0,0.16307724]
[1644636827096,0.329508,42268.0,42265.0,0.16307724]
[1644636827297,0.329608,42268.0,42266.0,0.059161]
[1644636827695,0.329508,42268.0,42266.0,0.059161]
[1644636827896,0.0001,42268.0,42266.0,0.059161]
[1644636828133,0.329508,42268.0,42266.0,0.059161]
[1644636828332,0.329608,42268.0,42266.0,0.059161]
[1644636828933,0.329508,42268.0,42266.0,0.059161]
[1644636829136,0.329508,42267.0,42266.0,0.059161]
[1644636829536,0.329608,42268.0,42266.0,0.06047678]
[1644636830241,0.329508,42268.0,42266.0,0.06047678]
[1644636830436,0.329508,42267.0,42266.0,0.00131578]
[1644636830839,0.329608,42268.0,42266.0,0.00131578]
[1644636831039,0.25272307,42267.0,42266.0,0.00131578]
[1644636831240,0.58223107,42267.0,42266.0,0.00131578]
[1644636833790,0.329508,42267.0,42266.0,0.00131578]
[1644636834384,0.329608,42268.0,42264.0,0.059164]
[1644636834685,0.329608,42268.0,42264.0,0.26042251]
[1644636834885,0.329608,42268.0,42264.0,0.059164]
[1644636834886,0.46074792,42267.0,42264.0,0.059164]
[1644636835087,0.329508,42266.0,42264.0,0.059164]
[1644636835286,0.329508,42264.0,42262.0,0.00131941]
[1644636836750,0.429508,42264.0,42262.0,0.00131941]
[1644636836956,0.329508,42262.0,42260.0,0.24]
[1644636837155,0.329508,42261.0,42260.0,0.24]
[1644636837352,0.479508,42261.0,42260.0,0.24]
[1644636837555,0.529508,42261.0,42260.0,0.24]
[1644636837754,0.7436905,42261.0,42260.0,0.24]
[1644636838357,0.529508,42261.0,42260.0,0.24]
[1644636839064,0.329508,42261.0,42260.0,0.24]
[1644636840090,0.329508,42261.0,42260.0,0.30853732]
[1644636840291,0.329508,42261.0,42260.0,0.24]
[1644636840492,0.60465012,42261.0,42260.0,0.24]
[1644636841292,0.329508,42261.0,42260.0,0.24]
[1644636841893,0.60927731,42261.0,42260.0,0.24]
[1644636842295,0.329508,42261.0,42260.0,0.24]
[1644636842895,0.60234016,42261.0,42260.0,0.24]
[1644636843752,0.329508,42261.0,42260.0,0.24]
[1644636844940,0.33118742,42261.0,42260.0,0.24]
[1644636849192,0.0001,42266.0,42264.0,0.19]
[1644636849393,0.30538447,42273.0,42266.0,0.048489]
[1644636849596,0.00203276,42274.0,42268.0,0.19]
[1644636849793,0.00203276,42274.0,42271.0,0.19]
[1644636849992,0.00203276,42274.0,42272.0,0.095772]
[1644636850294,0.00203276,42274.0,42272.0,0.0473]
[1644636850295,0.58227991,42273.0,42272.0,0.0473]
[1644636851236,0.73227991,42273.0,42272.0,0.0473]
[1644636852838,0.73227991,42273.0,42266.0,0.06763755]
[1644636853039,0.329508,42272.0,42266.0,0.06763755]
[1644636853439,0.329508,42271.0,42266.0,0.06763755]
[1644636854243,0.00035164,42271.0,42268.0,0.19]
[1644636854497,0.00035164,42271.0,42270.0,0.05915]
[1644636854696,0.00035164,42271.0,42270.0,0.154927]
[1644636854898,0.00035164,42271.0,42270.0,0.204927]
[1644636855095,0.0001765,42271.0,42270.0,0.10645]
[1644636855296,0.329508,42274.0,42271.0,0.001704]
[1644636855498,0.0558723,42269.0,42268.0,0.308299]
[1644636855693,0.0558723,42269.0,42268.0,0.38363062]
[1644636856498,0.0558723,42269.0,42268.0,0.62978292]
[1644636856695,0.0558723,42269.0,42268.0,0.92945944]
[1644636856896,0.0558723,42269.0,42268.0,0.81560294]
[1644636857297,0.0558723,42269.0,42268.0,1.10432609]
[1644636857502,0.0558723,42269.0,42268.0,0.91850607]
[1644636857700,0.0558723,42269.0,42268.0,1.10432609]
[1644636859340,0.0558723,42269.0,42268.0,1.15162609]
[1644636859743,0.0558723,42269.0,42268.0,1.40320501]
[1644636859946,0.0558723,42269.0,42268.0,1.15162609]
[1644636860345,0.0558723,42269.0,42268.0,1.20010809]
[1644636860944,0.0558723,42269.0,42268.0,1.45168701]
[1644636861447,0.0558723,42269.0,42268.0,1.20010809]
[1644636861647,0.0558723,42269.0,42268.0,1.24098387]
[1644636861907,0.0558723,42269.0,42268.0,1.64256279]
[1644636862103,0.0558723,42269.0,42268.0,1.44098387]
[1644636862302,0.00130813,42270.0,42269.0,0.75]
[1644636862503,0.00120813,42270.0,42269.0,1.4785991]
[1644636862707,0.21961254,42276.0,42271.0,0.55]
[1644636862905,0.21961254,42276.0,42275.0,0.238464]
[1644636863202,0.21961254,42276.0,42275.0,0.85230028]
[1644636863404,0.21961254,42276.0,42275.0,0.93296685]
[1644636863604,0.21961254,42276.0,42275.0,1.07032287]
[1644636863804,0.21961254,42276.0,42275.0,0.61069822]
[1644636864807,0.21961254,42276.0,42275.0,0.66983222]
[1644636865843,0.21961254,42276.0,42275.0,0.62136822]
[1644636866243,0.21961254,42276.0,42275.0,0.86136822]
[1644636866844,0.21961254,42276.0,42275.0,1.20642825]
[1644636867045,0.21961254,42276.0,42275.0,1.39428013]
[1644636867749,0.21961254,42276.0,42275.0,1.34581613]
[1644636867945,0.21971254,42276.0,42275.0,1.34581613]
[1644636868146,0.00047079,42278.0,42276.0,0.45]
[1644636868347,0.00047079,42278.0,42277.0,1.03766]
[1644636868545,0.00022528,42282.0,42277.0,1.03766]
[1644636868546,0.00022528,42282.0,42281.0,0.19]
[1644636868750,0.01,42289.0,42281.0,0.19]
[1644636868751,0.00022528,42284.0,42281.0,0.46020271]
[1644636868946,0.00188286,42285.0,42282.0,0.048447]
[1644636869147,0.00022528,42284.0,42282.0,0.095747]
[1644636869395,0.00210814,42285.0,42282.0,0.27699581]
[1644636869588,0.00022528,42285.0,42282.0,0.27699581]
[1644636869789,0.00022528,42285.0,42282.0,0.34677369]
[1644636869989,0.00069605,42285.0,42282.0,0.39521969]
[1644636870191,0.00047077,42285.0,42284.0,0.048441]
[1644636870395,0.00069605,42285.0,42284.0,0.095741]
[1644636870690,0.00047077,42285.0,42284.0,0.095741]
[1644636870890,0.00022528,42288.0,42284.0,0.095741]
[1644636871091,0.00069367,42287.0,42286.0,0.19]
[1644636871292,0.00046839,42287.0,42286.0,0.285736]
[1644636872092,0.01022528,42289.0,42286.0,0.285736]
[1644636872292,0.01022528,42289.0,42287.0,0.048433]
[1644636872293,0.01046838,42289.0,42287.0,0.048433]
[1644636872494,0.01046838,42289.0,42288.0,0.0473]
[1644636872692,0.01046838,42289.0,42288.0,0.09573]
[1644636873343,0.01,42289.0,42288.0,0.09573]
[1644636876143,0.01,42289.0,42288.0,0.38566467]
[1644636876344,0.01,42289.0,42288.0,0.46136499]
[1644636876545,0.01,42289.0,42288.0,0.41293499]
[1644636876991,0.01,42289.0,42288.0,0.46136499]
[1644636877192,0.01,42289.0,42288.0,0.41293499]
[1644636877392,0.01,42289.0,42288.0,0.46136499]
[1644636877797,0.01,42289.0,42288.0,0.65274248]
[1644636878096,0.01,42289.0,42288.0,0.80293499]
[1644636879293,0.01,42289.0,42288.0,0.85136499]
[1644636879492,0.01,42289.0,42288.0,0.80293499]
[1644636879894,0.00266595,42299.0,42291.0,0.059116]
[1644636880094,0.00256595,42299.0,42294.0,0.19]
[1644636880296,0.00256595,42299.0,42295.0,0.0473]
[1644636880743,0.00279156,42299.0,42295.0,0.0473]
[1644636880942,0.329508,42298.0,42295.0,0.0473]
[1644636881142,0.0001,42297.0,42295.0,0.0473]
[1644636881340,0.00279156,42299.0,42295.0,0.0473]
[1644636881540,0.00022561,42298.0,42295.0,0.0473]
[1644636881740,0.00256595,42299.0,42295.0,0.0473]
[1644636881941,0.00310414,42299.0,42295.0,0.0473]
[1644636882242,0.00287853,42299.0,42295.0,0.0473]
[1644636882842,0.00256595,42299.0,42295.0,0.0473]
[1644636883043,0.00256595,42299.0,42295.0,0.04776996]
[1644636883344,0.00303586,42299.0,42295.0,0.04776996]
[1644636884141,0.00256595,42299.0,42295.0,0.0473]
[1644636884400,0.00303586,42299.0,42295.0,0.04776996]
[1644636885093,0.00303586,42299.0,42296.0,0.00135677]
[1644636885294,0.00256595,42299.0,42296.0,0.00135677]
[1644636885497,0.2,42298.0,42254.0,2.44136743]
[1644636885696,0.0001,42297.0,42294.0,0.0473]
[1644636885898,0.00022561,42298.0,42294.0,0.0473]
[1644636886096,0.00303405,42299.0,42294.0,0.165526]
[1644636886298,0.08712329,42298.0,42294.0,0.224639]
[1644636886496,0.0001,42297.0,42294.0,0.224639]
[1644636887096,0.00022561,42298.0,42294.0,0.224639]
[1644636887396,0.00256595,42299.0,42294.0,0.224639]
[1644636887597,0.19958186,42303.0,42294.0,0.414639]
[1644636888000,0.43132142,42305.0,42294.0,0.414639]
[1644636888257,0.26653474,42304.0,42294.0,0.414639]
[1644636889059,0.00034984,42301.0,42294.0,0.106413]
[1644636889957,0.00034984,42301.0,42294.0,0.165532]
[1644636890158,0.00191601,42297.0,42294.0,0.165532]
[1644636891560,0.00191601,42297.0,42294.0,0.22465062]
[1644636893392,0.00191601,42297.0,42295.0,0.19]
[1644636893596,0.00191601,42297.0,42294.0,0.22465062]
[1644636894596,0.00191601,42297.0,42294.0,0.17735062]
[1644636894794,0.00191601,42297.0,42295.0,0.048411]
[1644636894997,0.00191601,42297.0,42296.0,0.0473]
[1644636895199,0.00191601,42297.0,42296.0,0.09571]
[1644636901205,0.00191601,42297.0,42296.0,0.0473]
[1644636901412,0.00191601,42297.0,42296.0,0.09571]
[1644636902605,0.00191601,42297.0,42296.0,0.04841]
[1644636903243,0.00191601,42297.0,42296.0,0.23873997]
[1644636904645,0.00191601,42297.0,42296.0,0.04841]
[1644636904944,0.00191601,42297.0,42294.0,0.17735062]
[1644636905545,0.00191601,42297.0,42294.0,0.36735062]
[1644636905745,0.00191601,42297.0,42295.0,0.26107243]
[1644636906991,0.00191601,42297.0,42296.0,0.04841]
[1644636907291,0.00191601,42297.0,42295.0,0.553199]
[1644636908492,0.00191601,42297.0,42295.0,0.26107243]
[1644636910094,0.00219392,42297.0,42296.0,0.04841]
[1644636910295,0.00219392,42297.0,42295.0,0.26107243]
[1644636911848,0.00219392,42297.0,42296.0,0.04841]
[1644636913046,0.00219392,42297.0,42296.0,0.33968802]
[1644636913449,0.00219392,42297.0,42296.0,0.38698802]
[1644636913647,0.00219392,42297.0,42296.0,0.58801549]
[1644636914492,0.00219392,42297.0,42296.0,0.53960549]
[1644636914690,0.00219392,42297.0,42296.0,0.38698802]
[1644636915288,0.00219392,42297.0,42296.0,0.58801549]
[1644636915688,0.00219392,42297.0,42296.0,0.38698802]
[1644636915888,0.00219392,42297.0,42296.0,0.58810643]
[1644636916090,0.00219392,42297.0,42296.0,0.38698802]
[1644636916289,0.00219392,42297.0,42296.0,0.5880956]
[1644636916689,0.00219392,42297.0,42296.0,0.38698802]
[1644636916890,0.00219392,42297.0,42296.0,0.58809823]
[1644636917192,0.00219392,42297.0,42296.0,0.58809859]
[1644636917489,0.00219392,42297.0,42296.0,0.58809893]
[1644636917789,0.00219392,42297.0,42296.0,0.38698802]
[1644636917990,0.00219392,42297.0,42296.0,0.58809962]
[1644636918247,0.00219392,42297.0,42296.0,0.38698802]
[1644636918445,0.00219392,42297.0,42296.0,0.58809065]
[1644636918646,0.00219392,42297.0,42296.0,0.38698802]
[1644636919652,0.00219392,42297.0,42296.0,0.58809216]
[1644636919852,0.00219392,42297.0,42294.0,0.36735062]
[1644636920050,0.00219392,42297.0,42296.0,0.20110433]
[1644636920949,0.00219392,42297.0,42295.0,0.24840433]
[1644636922000,0.00219392,42297.0,42295.0,0.0473]
[1644636923001,0.00219392,42297.0,42296.0,0.20108642]
[1644636924803,0.00219392,42297.0,42295.0,0.41238214]
[1644636925638,0.00219392,42297.0,42295.0,0.46238214]
[1644636925839,0.00219392,42297.0,42295.0,0.61238214]
[1644636929492,0.00219392,42297.0,42295.0,0.46238214]
[1644636929791,0.00219392,42297.0,42295.0,0.41238214]
[1644636929993,0.00219392,42297.0,42295.0,0.66366647]
[1644636930194,0.00127691,42297.0,42295.0,0.224617]
[1644636930390,0.0001,42305.0,42300.0,0.0466243]
[1644636930591,0.0001,42305.0,42301.0,0.19590703]
[1644636930792,0.0001,42307.0,42301.0,0.19590703]
[1644636932191,0.0001,42307.0,42301.0,0.40223183]
[1644636932491,0.0001,42308.0,42305.0,0.059106]
[1644636933569,0.0001,42308.0,42305.0,0.299106]
[1644636936072,0.19984273,42308.0,42305.0,0.299106]
[1644636936274,0.0001,42307.0,42305.0,0.299106]
[1644636937822,0.0001,42307.0,42305.0,0.24]
[1644636937823,0.57915911,42306.0,42305.0,0.24]
[1644636938018,0.315833,42304.0,42302.0,0.00170026]
[1644636938217,0.20003788,42303.0,42302.0,0.00170026]
[1644636938417,0.0001,42303.0,42302.0,0.00170026]
[1644636938920,0.20003788,42303.0,42302.0,0.00170026]
[1644636939120,0.20003788,42303.0,42300.0,0.0466243]
[1644636939121,0.32949,42300.0,42294.0,0.00050886]
[1644636939323,0.32949,42297.0,42294.0,0.00050886]
[1644636939519,0.19992323,42298.0,42287.0,0.18780851]
[1644636939520,0.32949,42294.0,42287.0,0.18780851]
[1644636939718,0.26672095,42293.0,42287.0,0.18780851]
[1644636939918,0.32949,42292.0,42286.0,0.2011623]
[1644636940118,0.32949,42292.0,42291.0,0.07243526]
[1644636940321,0.32949,42293.0,42286.0,0.2011623]
[1644636940654,0.32949,42293.0,42285.0,0.2602953]
[1644636940655,0.32949,42292.0,42285.0,0.2602953]
[1644636940855,0.32949,42293.0,42287.0,0.00041361]
[1644636941055,0.0001,42293.0,42287.0,0.00041361]
[1644636941258,0.40583932,42293.0,42287.0,0.05954761]
[1644636941457,0.26139053,42292.0,42287.0,0.05954761]
[1644636941654,0.32949,42291.0,42287.0,0.05954761]
[1644636941858,0.32949,42291.0,42287.0,0.059134]
[1644636942057,0.26139053,42292.0,42287.0,0.05954761]
[1644636942254,0.32949,42291.0,42287.0,0.05954761]
[1644636942656,0.26139053,42292.0,42287.0,0.05954761]
[1644636943058,0.32949,42291.0,42287.0,0.059134]
[1644636943258,0.26139053,42292.0,42287.0,0.05954761]
[1644636943656,0.32949,42291.0,42287.0,0.05954761]
[1644636943858,0.32949,42290.0,42287.0,0.05954761]
[1644636944060,0.27390202,42289.0,42287.0,0.24041361]
[1644636944261,0.32949,42288.0,42287.0,0.24]
[1644636944498,0.60132257,42288.0,42287.0,0.24]
[1644636944700,0.32949,42288.0,42287.0,0.24]
[1644636944900,0.42949,42288.0,42287.0,0.24]
[1644636945107,0.42949,42288.0,42286.0,0.0004375]
[1644636945108,0.47949,42288.0,42286.0,0.0004375]
[1644636945301,0.32949,42287.0,42286.0,0.0004375]
[1644636945503,0.15,42288.0,42277.0,0.36521929]
[1644636945700,0.32949,42287.0,42285.0,0.00043751]
[1644636946101,0.58175256,42286.0,42285.0,0.00043751]
[1644636946301,0.85280466,42286.0,42285.0,0.00043751]
[1644636946506,1.15280466,42286.0,42285.0,0.00043751]
[1644636946703,1.15280466,42286.0,42273.0,0.05]
[1644636946704,0.32949,42285.0,42273.0,0.05]
[1644636946904,0.32949,42281.0,42268.0,0.25140085]
[1644636947104,0.32949,42279.0,42269.0,0.25140085]
[1644636947305,0.52941638,42279.0,42267.0,0.25140085]
[1644636947503,0.52941638,42279.0,42265.0,0.46575164]
[1644636947504,0.30934572,42273.0,42266.0,0.25140085]
[1644636947704,0.61440329,42272.0,42266.0,0.25140085]
[1644636947906,0.32949,42271.0,42265.0,0.31946815]
[1644636948160,0.28491329,42272.0,42267.0,0.00043232]
[1644636948355,0.26303499,42272.0,42267.0,0.00043232]
[1644636948556,0.26870208,42272.0,42267.0,0.00043232]
[1644636948757,0.26870208,42272.0,42267.0,0.05959232]
[1644636948957,0.32949,42271.0,42267.0,0.05959232]
[1644636949158,0.32949,42271.0,42267.0,0.05916]
[1644636949357,0.32949,42271.0,42267.0,0.05959232]
[1644636949559,0.1,42278.0,42267.0,0.05959232]
[1644636949759,0.1,42278.0,42276.0,0.0646514]
[1644636949760,0.05,42278.0,42276.0,0.0646514]
[1644636949959,0.05,42278.0,42276.0,0.1237934]
[1644636950158,0.53637785,42283.0,42276.0,0.1237934]
[1644636950461,0.32949,42280.0,42276.0,0.1237934]
[1644636950667,0.02873226,42275.0,42271.0,0.06357649]
[1644636952192,0.02873226,42275.0,42272.0,0.11829357]
[1644636952193,0.32949,42274.0,42272.0,0.11829357]
[1644636952390,0.32949,42274.0,42272.0,0.118296]
[1644636952690,0.32949,42274.0,42272.0,0.059148]
[1644636952890,0.02873226,42275.0,42272.0,0.249148]
[1644636953492,0.32949,42274.0,42272.0,0.059148]
[1644636953692,0.02873226,42275.0,42272.0,0.059148]
[1644636953891,0.02873226,42275.0,42272.0,0.11829369]
[1644636954492,0.02873226,42275.0,42272.0,0.34829369]
[1644636954691,0.32949,42274.0,42272.0,0.34829369]
[1644636955092,0.32949,42274.0,42272.0,0.40744069]
[1644636955292,0.32949,42274.0,42272.0,0.348295]
[1644636955495,0.32949,42274.0,42272.0,0.289148]
[1644636955753,0.32949,42274.0,42272.0,0.23]
[1644636956554,0.08728064,42273.0,42272.0,0.23]
[1644636956758,0.41677064,42273.0,42272.0,0.23]
[1644636956956,0.08136764,42273.0,42272.0,0.23]
[1644636957157,0.41085764,42273.0,42272.0,0.23]
[1644636957856,0.32949,42273.0,42272.0,0.23]
[1644636958055,0.329498,42273.0,42272.0,0.23]
[1644636960298,0.417253,42273.0,42272.0,0.23]
[1644636960898,0.517253,42273.0,42272.0,0.23]
[1644636961104,0.087755,42273.0,42272.0,0.23]
[1644636961302,0.567253,42273.0,42272.0,0.23]
[1644636962304,0.237755,42273.0,42272.0,0.23]
[1644636962504,0.567253,42273.0,42272.0,0.23]
[1644636962704,0.137755,42273.0,42272.0,0.23]
[1644636963003,0.567253,42273.0,42272.0,0.23]
[1644636963246,0.237755,42273.0,42272.0,0.23]
[1644636963547,0.567253,42273.0,42272.0,0.23]
[1644636969600,0.237755,42273.0,42272.0,0.23]
[1644636969801,0.467253,42273.0,42272.0,0.23]
[1644636970301,0.23866415,42273.0,42272.0,0.23]
[1644636970500,0.56816215,42273.0,42272.0,0.23]
[1644636970746,0.23866415,42273.0,42272.0,0.23]
[1644636970943,0.56816215,42273.0,42272.0,0.23]
[1644636971145,0.23866415,42273.0,42272.0,0.23]
[1644636971344,0.46816215,42273.0,42272.0,0.23]
[1644636971548,0.23866415,42273.0,42272.0,0.23]
[1644636971746,0.56816215,42273.0,42272.0,0.23]
[1644636976804,0.56316215,42273.0,42272.0,0.23]
[1644636977400,0.00090915,42273.0,42272.0,0.23]
[1644636978847,0.00090915,42273.0,42272.0,0.30528924]
[1644636979247,0.00013479,42273.0,42272.0,0.30528924]
[1644636980051,0.00013479,42273.0,42272.0,0.61362776]
[1644636980250,0.00099387,42274.0,42272.0,0.61362776]
[1644636980251,0.00169076,42274.0,42272.0,0.61241007]
[1644636980651,0.02873226,42275.0,42272.0,0.30528924]
[1644636981654,0.02373226,42275.0,42272.0,0.30528924]
[1644636983108,0.02373226,42275.0,42272.0,0.59885823]
[1644636983310,0.02373226,42275.0,42274.0,0.20086098]
[1644636985111,0.02373226,42275.0,42273.0,0.20086098]
[1644636985314,0.02373226,42275.0,42274.0,0.20086098]
[1644636985514,0.02373226,42275.0,42274.0,0.20285434]
[1644636985746,0.02373226,42275.0,42274.0,0.00174179]
[1644636987349,0.02373226,42275.0,42274.0,0.25281801]
[1644636987547,0.02373226,42275.0,42274.0,0.00174179]
[1644636988150,0.02373226,42275.0,42274.0,0.30140324]
[1644636988349,0.02373226,42275.0,42274.0,0.50466924]
[1644636988548,0.02373226,42275.0,42274.0,0.55196924]
[1644636988748,0.02373226,42275.0,42274.0,0.85366797]
[1644636988949,0.02373226,42275.0,42274.0,0.34870324]
[1644636989402,0.02373226,42275.0,42274.0,0.55196924]
[1644636989798,0.02373226,42275.0,42274.0,0.34870324]
[1644636990001,0.02373226,42275.0,42274.0,0.04904179]
[1644636990198,0.02373226,42275.0,42274.0,0.0473]
[1644636990598,0.02373226,42275.0,42274.0,0.2987307]
[1644636990799,0.02373226,42275.0,42274.0,0.0473]
[1644636990999,0.02373226,42275.0,42274.0,0.2987307]
[1644636991198,0.02373226,42275.0,42274.0,0.0473]
[1644636991398,0.02373226,42275.0,42274.0,0.2987307]
[1644636991600,0.02373226,42275.0,42274.0,0.0473]
[1644636992299,0.0236372,42275.0,42274.0,0.0473]
[1644636993002,0.0236372,42275.0,42274.0,0.2987307]
[1644636993448,0.0236372,42275.0,42274.0,0.0473]
[1644636995951,0.0236372,42275.0,42274.0,0.2987307]
[1644636998103,0.00215104,42275.0,42274.0,0.2987307]
[1644636999303,0.33164904,42275.0,42274.0,0.2987307]
[1644636999703,0.00215104,42275.0,42274.0,0.2987307]
[1644637001547,0.00215104,42275.0,42274.0,0.0473]
[1644637002046,0.00215104,42275.0,42274.0,0.2987307]
[1644637002448,0.00215104,42275.0,42274.0,0.2514307]
[1644637002849,0.00215104,42275.0,42273.0,0.25285612]
[1644637005006,0.00215104,42275.0,42274.0,0.2514307]
[1644637006906,0.00215104,42275.0,42273.0,0.31199837]
[1644637007507,0.00215104,42275.0,42274.0,0.2514307]
[1644637007909,0.00215104,42275.0,42273.0,0.31199837]
[1644637008152,0.329498,42274.0,42273.0,0.25285612]
[1644637008347,0.00215104,42275.0,42273.0,0.25285612]
[1644637008548,0.329498,42274.0,42273.0,0.25285612]
[1644637009549,0.00215104,42275.0,42273.0,0.25285612]
[1644637010149,0.00215104,42275.0,42273.0,0.2514307]
[1644637010548,0.00215104,42275.0,42273.0,0.32661616]
[1644637010948,0.329498,42274.0,42273.0,0.32661616]
[1644637011150,0.00215104,42275.0,42273.0,0.32661616]
[1644637012601,0.00215104,42275.0,42273.0,0.2514307]
[1644637013304,0.329498,42274.0,42273.0,0.2514307]
[1644637013901,0.329498,42274.0,42272.0,0.43169435]
[1644637014103,0.429498,42274.0,42272.0,0.43118556]
[1644637014303,0.429498,42274.0,42273.0,0.20118556]
[1644637015305,0.479498,42274.0,42273.0,0.20118556]
[1644637015503,0.479498,42274.0,42272.0,0.43118556]
[1644637015748,0.329498,42273.0,42272.0,0.43118556]
[1644637016152,0.429498,42273.0,42272.0,0.43118556]
[1644637016553,0.429498,42273.0,42272.0,0.23]
[1644637016753,0.1,42273.0,42272.0,0.23]
[1644637016954,0.429498,42273.0,42272.0,0.23]
[1644637020706,0.429498,42273.0,42272.0,0.43123419]
[1644637021705,0.1,42273.0,42272.0,0.23]
[1644637021905,0.329498,42273.0,42272.0,0.43123464]
[1644637022105,0.329498,42273.0,42272.0,0.23]
[1644637022305,0.429498,42273.0,42272.0,0.23]
[1644637022908,0.1,42273.0,42272.0,0.23]
[1644637023149,0.429498,42273.0,42272.0,0.43124132]
[1644637024552,0.429498,42273.0,42272.0,0.23]
[1644637028518,0.1,42273.0,42272.0,0.23]
[1644637028718,0.00215104,42275.0,42272.0,0.43124132]
[1644637028923,0.00215104,42275.0,42274.0,0.20124132]
[1644637029120,0.33164904,42275.0,42274.0,0.20124132]
[1644637029317,0.00215104,42275.0,42274.0,0.20124132]
[1644637029919,0.00215104,42275.0,42274.0,0.26038432]
[1644637030118,0.33164904,42275.0,42274.0,0.26038432]
[1644637030321,0.33164904,42275.0,42274.0,0.20124132]
[1644637030524,0.33164904,42275.0,42273.0,0.31952932]
[1644637030749,0.329498,42274.0,42273.0,0.31952932]
[1644637032450,0.00215104,42275.0,42273.0,0.31952932]
[1644637032651,0.329498,42274.0,42273.0,0.31952932]
[1644637032852,0.429498,42274.0,42273.0,0.31952932]
[1644637033152,0.1,42274.0,42273.0,0.31952932]
[1644637033351,0.429498,42274.0,42273.0,0.31952932]
[1644637033551,0.1,42274.0,42273.0,0.31952932]
[1644637033754,0.429498,42274.0,42273.0,0.31949427]
[1644637033954,0.00215104,42275.0,42273.0,0.118288]